[Event "*** SCC Grand Prix: Titled Tuesday Blitz"]
[Site "Chess.com"]
[Date "2020.10.13"]
[Round "8"]
[White "iwanyu"]
[Black "Stouuf"]
[Result "1-0"]
[WhiteElo "2815"]
[BlackElo "2607"]
[TimeControl "180+1"]
[EndTime "11:32:12 PDT"]
[Termination "iwanyu won by resignation"]

1. e4 {[%clk 0:03:00.9]} 1... d6 {[%clk 0:02:58.3]} 2. d4 {[%clk 0:03:00]} 2...
Nf6 {[%clk 0:02:58.8]} 3. Nc3 {[%clk 0:02:59.8]} 3... e5 {[%clk 0:02:59.5]} 4.
Nf3 {[%clk 0:02:59.9]} 4... Nbd7 {[%clk 0:02:59.4]} 5. Bc4 {[%clk 0:02:58.8]}
5... exd4 {[%clk 0:02:59.9]} 6. Nxd4 {[%clk 0:02:58.6]} 6... Nb6 {[%clk
0:03:00.1]} 7. Be2 {[%clk 0:02:52.2]} 7... Be7 {[%clk 0:02:59.8]} 8. O-O {[%clk
0:02:51.8]} 8... O-O {[%clk 0:02:58.5]} 9. f4 {[%clk 0:02:52]} 9... Re8 {[%clk
0:02:57.6]} 10. Bf3 {[%clk 0:02:50.9]} 10... Bf8 {[%clk 0:02:57.7]} 11. h3
{[%clk 0:02:47.4]} 11... c6 {[%clk 0:02:56.2]} 12. a4 {[%clk 0:02:38.3]} 12...
a5 {[%clk 0:02:55.6]} 13. b3 {[%clk 0:02:38.3]} 13... d5 {[%clk 0:02:55.5]} 14.
e5 {[%clk 0:02:36.7]} 14... Nfd7 {[%clk 0:02:53.5]} 15. Nce2 {[%clk 0:02:36.9]}
15... Nc5 {[%clk 0:02:53.5]} 16. Bb2 {[%clk 0:02:28.1]} 16... f6 {[%clk
0:02:53.3]} 17. Ng3 {[%clk 0:02:06.5]} 17... fxe5 {[%clk 0:02:42.3]} 18. fxe5
{[%clk 0:02:07.4]} 18... g6 {[%clk 0:02:42.8]} 19. Nh5 {[%clk 0:02:02.3]} 19...
gxh5 {[%clk 0:02:11.7]} 20. Bxh5 {[%clk 0:02:03.2]} 20... Re7 {[%clk 0:02:07.2]}
21. e6 {[%clk 0:01:59.9]} 21... Bg7 {[%clk 0:01:52.2]} 22. Qg4 {[%clk 0:01:14]}
22... Nxe6 {[%clk 0:01:38.4]} 23. Nf5 {[%clk 0:01:11.1]} 23... Kh8 {[%clk
0:01:19.6]} 24. Nxg7 {[%clk 0:00:47.7]} 24... Nxg7 {[%clk 0:01:18.7]} 25. Qg5
{[%clk 0:00:47.6]} 25... Be6 {[%clk 0:00:54.3]} 26. Bf6 {[%clk 0:00:47.6]} 26...
Nc8 {[%clk 0:00:40.6]} 27. Bxg7+ {[%clk 0:00:47.3]} 1-0

[Event "*** SCC Grand Prix: Titled Tuesday Blitz"]
[Site "Chess.com"]
[Date "2020.10.13"]
[Round "8"]
[White "kakakz"]
[Black "Shivagami"]
[Result "1-0"]
[WhiteElo "2356"]
[BlackElo "2232"]
[TimeControl "180+1"]
[EndTime "11:32:14 PDT"]
[Termination "kakakz won on time"]

1. d4 {[%clk 0:03:00.9]} 1... Nf6 {[%clk 0:02:59.2]} 2. c4 {[%clk 0:03:01.8]}
2... c5 {[%clk 0:02:58.5]} 3. Nf3 {[%clk 0:03:02.7]} 3... d5 {[%clk 0:02:43.3]}
4. Nc3 {[%clk 0:02:53.9]} 4... e6 {[%clk 0:02:41.2]} 5. e3 {[%clk 0:02:53.2]}
5... b6 {[%clk 0:02:39]} 6. cxd5 {[%clk 0:02:51.1]} 6... Nxd5 {[%clk 0:02:38.3]}
7. Bb5+ {[%clk 0:02:48.2]} 7... Bd7 {[%clk 0:02:34.9]} 8. Qa4 {[%clk 0:02:46.8]}
8... Nc7 {[%clk 0:02:27.6]} 9. Bxd7+ {[%clk 0:02:41.4]} 9... Qxd7 {[%clk
0:02:26.5]} 10. O-O {[%clk 0:02:27]} 10... Bd6 {[%clk 0:02:07.1]} 11. dxc5
{[%clk 0:02:23.2]} 11... Bxc5 {[%clk 0:02:02.8]} 12. Rd1 {[%clk 0:02:23.3]}
12... Qxa4 {[%clk 0:02:01.9]} 13. Nxa4 {[%clk 0:02:24.2]} 13... Be7 {[%clk
0:02:00.2]} 14. e4 {[%clk 0:02:21.7]} 14... Nc6 {[%clk 0:01:55.1]} 15. Bf4
{[%clk 0:02:21.8]} 15... Nb5 {[%clk 0:01:42.2]} 16. Rac1 {[%clk 0:02:18.1]}
16... Rc8 {[%clk 0:01:41.4]} 17. Rc4 {[%clk 0:02:12.8]} 17... Rd8 {[%clk
0:00:49.5]} 18. Rdc1 {[%clk 0:02:13.7]} 18... Na5 {[%clk 0:00:46.4]} 19. R4c2
{[%clk 0:01:58.5]} 19... O-O {[%clk 0:00:46.2]} 20. a3 {[%clk 0:01:55.8]} 20...
Nb3 {[%clk 0:00:43.8]} 21. Re1 {[%clk 0:01:50.5]} 21... N5d4 {[%clk 0:00:17]}
22. Nxd4 {[%clk 0:01:49.6]} 22... Nxd4 {[%clk 0:00:17.9]} 23. Rc7 {[%clk
0:01:47.5]} 23... Bf6 {[%clk 0:00:10.5]} 24. Nc3 {[%clk 0:01:40.8]} 24... a6
{[%clk 0:00:09.5]} 25. e5 {[%clk 0:01:39.7]} 25... Nc2 {[%clk 0:00:02.7]} 26.
Rc1 {[%clk 0:01:33]} 26... Rd4 {[%clk 0:00:02.3]} 27. exf6 {[%clk 0:01:25.7]}
1-0

[Event "*** SCC Grand Prix: Titled Tuesday Blitz"]
[Site "Chess.com"]
[Date "2020.10.13"]
[Round "8"]
[White "Unknown_IM"]
[Black "swayamsm"]
[Result "0-1"]
[WhiteElo "2385"]
[BlackElo "2637"]
[TimeControl "180+1"]
[EndTime "11:32:20 PDT"]
[Termination "swayamsm won by resignation"]

1. e4 {[%clk 0:03:00.9]} 1... e6 {[%clk 0:03:00.9]} 2. d4 {[%clk 0:03:00.8]}
2... d5 {[%clk 0:02:57.3]} 3. e5 {[%clk 0:03:00.8]} 3... c5 {[%clk 0:02:55.6]}
4. c3 {[%clk 0:03:00.4]} 4... Nc6 {[%clk 0:02:53.8]} 5. Nf3 {[%clk 0:02:59.5]}
5... Qb6 {[%clk 0:02:48.2]} 6. a3 {[%clk 0:02:58.7]} 6... Nh6 {[%clk 0:02:45.3]}
7. b4 {[%clk 0:02:57.3]} 7... cxd4 {[%clk 0:02:45.5]} 8. Bxh6 {[%clk 0:02:54.6]}
8... gxh6 {[%clk 0:02:43.7]} 9. cxd4 {[%clk 0:02:54.4]} 9... Bd7 {[%clk
0:02:34.9]} 10. g3 {[%clk 0:02:53.8]} 10... Rc8 {[%clk 0:02:32.5]} 11. Bg2
{[%clk 0:02:51.2]} 11... Rg8 {[%clk 0:02:23.9]} 12. O-O {[%clk 0:02:50.3]} 12...
Rg4 {[%clk 0:02:23.4]} 13. h3 {[%clk 0:02:48.9]} 13... Rxd4 {[%clk 0:02:18.3]}
14. Nxd4 {[%clk 0:02:47.9]} 14... Qxd4 {[%clk 0:02:10.4]} 15. Nd2 {[%clk
0:02:21.7]} 15... Nxe5 {[%clk 0:02:07.5]} 16. Nb3 {[%clk 0:01:42]} 16... Qxd1
{[%clk 0:02:06.5]} 17. Raxd1 {[%clk 0:01:40]} 17... Ba4 {[%clk 0:02:02.6]} 18.
Rb1 {[%clk 0:01:39.4]} 18... Nc4 {[%clk 0:02:01.5]} 19. Nd4 {[%clk 0:00:45.2]}
19... Nxa3 {[%clk 0:01:56.2]} 20. Ra1 {[%clk 0:00:28.7]} 20... Bxb4 {[%clk
0:01:55.9]} 21. Ra2 {[%clk 0:00:20.7]} 21... b5 {[%clk 0:01:50.1]} 22. Re2
{[%clk 0:00:18.9]} 22... Kf8 {[%clk 0:01:42.1]} 23. Kh2 {[%clk 0:00:17.8]} 23...
Nc2 {[%clk 0:01:39.7]} 24. Nxc2 {[%clk 0:00:17.4]} 24... Rxc2 {[%clk 0:01:39.5]}
25. Rxc2 {[%clk 0:00:16.7]} 25... Bxc2 {[%clk 0:01:40.4]} 26. Rc1 {[%clk
0:00:17.2]} 26... Bd3 {[%clk 0:01:39.4]} 27. Rc8+ {[%clk 0:00:17.4]} 27... Kg7
{[%clk 0:01:39]} 28. Rc7 {[%clk 0:00:17.3]} 28... a5 {[%clk 0:01:39.2]} 29. Bf3
{[%clk 0:00:17.9]} 29... a4 {[%clk 0:01:39.4]} 30. Ra7 {[%clk 0:00:17.4]} 30...
a3 {[%clk 0:01:39.2]} 31. Kg2 {[%clk 0:00:14.9]} 31... Bc4 {[%clk 0:01:38.6]}
32. Bh5 {[%clk 0:00:13.5]} 32... a2 {[%clk 0:01:32.2]} 33. Rxf7+ {[%clk
0:00:13.7]} 33... Kg8 {[%clk 0:01:32.6]} 34. Ra7 {[%clk 0:00:14.3]} 34... Bc3
{[%clk 0:01:33.1]} 35. Bf7+ {[%clk 0:00:14.6]} 35... Kf8 {[%clk 0:01:33.5]} 36.
Bxe6 {[%clk 0:00:13]} 36... a1=Q {[%clk 0:01:33.9]} 37. Re7 {[%clk 0:00:13.4]}
0-1

[Event "*** SCC Grand Prix: Titled Tuesday Blitz"]
[Site "Chess.com"]
[Date "2020.10.13"]
[Round "8"]
[White "shrek4life02"]
[Black "chito89"]
[Result "0-1"]
[WhiteElo "2589"]
[BlackElo "2800"]
[TimeControl "180+1"]
[EndTime "11:32:22 PDT"]
[Termination "chito89 won by checkmate"]

1. d4 {[%clk 0:03:00.9]} 1... d5 {[%clk 0:02:59.3]} 2. Bf4 {[%clk 0:03:00.8]}
2... c5 {[%clk 0:02:56.9]} 3. e3 {[%clk 0:03:00.7]} 3... Nc6 {[%clk 0:02:56.9]}
4. Nf3 {[%clk 0:03:00.9]} 4... cxd4 {[%clk 0:02:57]} 5. exd4 {[%clk 0:03:00.9]}
5... Bg4 {[%clk 0:02:57.4]} 6. c3 {[%clk 0:03:00.9]} 6... e6 {[%clk 0:02:57.3]}
7. Nbd2 {[%clk 0:02:58.6]} 7... Nge7 {[%clk 0:02:52.7]} 8. Qb3 {[%clk
0:02:56.3]} 8... Qd7 {[%clk 0:02:48.3]} 9. Bb5 {[%clk 0:02:54.3]} 9... Ng6
{[%clk 0:02:47.7]} 10. Ne5 {[%clk 0:02:50.5]} 10... Ngxe5 {[%clk 0:02:45.7]} 11.
Bxe5 {[%clk 0:02:51.4]} 11... a6 {[%clk 0:02:46.1]} 12. Bxc6 {[%clk 0:02:41.1]}
12... Qxc6 {[%clk 0:02:47]} 13. O-O {[%clk 0:02:39.3]} 13... f6 {[%clk
0:02:37.9]} 14. Bg3 {[%clk 0:02:36.4]} 14... h5 {[%clk 0:02:38.2]} 15. h3 {[%clk
0:02:27.4]} 15... Bf5 {[%clk 0:02:38.3]} 16. Rfe1 {[%clk 0:02:23.6]} 16... h4
{[%clk 0:02:35]} 17. Bh2 {[%clk 0:02:24]} 17... Rc8 {[%clk 0:02:32.2]} 18. Nf1
{[%clk 0:02:19.4]} 18... Be7 {[%clk 0:02:07]} 19. Ne3 {[%clk 0:02:15.5]} 19...
Bg6 {[%clk 0:02:07.5]} 20. f4 {[%clk 0:02:08.3]} 20... Be4 {[%clk 0:02:06.9]}
21. f5 {[%clk 0:01:22.9]} 21... exf5 {[%clk 0:02:04.4]} 22. Rf1 {[%clk 0:01:23]}
22... g6 {[%clk 0:02:01.9]} 23. Rae1 {[%clk 0:01:22.4]} 23... O-O {[%clk
0:01:55.2]} 24. Rf4 {[%clk 0:01:09.5]} 24... Rf7 {[%clk 0:01:49.1]} 25. Rxh4
{[%clk 0:00:57.2]} 25... Bf8 {[%clk 0:01:47.5]} 26. Rf4 {[%clk 0:00:53.1]} 26...
Re8 {[%clk 0:01:36.2]} 27. Rf2 {[%clk 0:00:51.1]} 27... b5 {[%clk 0:01:32.9]}
28. Rfe2 {[%clk 0:00:46]} 28... Rfe7 {[%clk 0:01:26.5]} 29. Qd1 {[%clk 0:00:32]}
29... Bh6 {[%clk 0:01:23.2]} 30. Nc2 {[%clk 0:00:29.7]} 30... Qc4 {[%clk
0:01:17.2]} 31. Ne3 {[%clk 0:00:22.7]} 31... Qxa2 {[%clk 0:01:11.8]} 32. b3
{[%clk 0:00:17.1]} 32... Bxe3+ {[%clk 0:01:11.3]} 33. Rxe3 {[%clk 0:00:15.6]}
33... Qxg2# {[%clk 0:01:10.8]} 0-1

[Event "*** SCC Grand Prix: Titled Tuesday Blitz"]
[Site "Chess.com"]
[Date "2020.10.13"]
[Round "8"]
[White "Aguiar94"]
[Black "alexgo05"]
[Result "1/2-1/2"]
[WhiteElo "2575"]
[BlackElo "2448"]
[TimeControl "180+1"]
[EndTime "11:32:24 PDT"]
[Termination "Game drawn by repetition"]

1. e4 {[%clk 0:03:00.9]} 1... d6 {[%clk 0:02:58.7]} 2. d4 {[%clk 0:02:57.7]}
2... Nf6 {[%clk 0:02:59.2]} 3. Nc3 {[%clk 0:02:57.7]} 3... Nbd7 {[%clk
0:02:59.4]} 4. Nf3 {[%clk 0:02:57]} 4... e5 {[%clk 0:02:59.6]} 5. Bc4 {[%clk
0:02:57.2]} 5... Be7 {[%clk 0:02:59.6]} 6. Ng5 {[%clk 0:02:57.2]} 6... O-O
{[%clk 0:02:58.5]} 7. Bxf7+ {[%clk 0:02:57.7]} 7... Rxf7 {[%clk 0:02:59.1]} 8.
Ne6 {[%clk 0:02:58.2]} 8... Qe8 {[%clk 0:02:58.8]} 9. Nxc7 {[%clk 0:02:58.8]}
9... Qd8 {[%clk 0:02:59.3]} 10. Nxa8 {[%clk 0:02:59.4]} 10... a6 {[%clk
0:02:47]} 11. dxe5 {[%clk 0:02:48.9]} 11... dxe5 {[%clk 0:02:43.4]} 12. Be3
{[%clk 0:02:43.8]} 12... b5 {[%clk 0:02:42]} 13. Nd5 {[%clk 0:02:37.6]} 13...
Nxe4 {[%clk 0:02:10.6]} 14. Nac7 {[%clk 0:02:12.3]} 14... Bd6 {[%clk 0:02:02.3]}
15. Ne6 {[%clk 0:01:57.6]} 15... Qh4 {[%clk 0:01:19.4]} 16. O-O {[%clk
0:01:55.9]} 16... Ndf6 {[%clk 0:00:57.2]} 17. Nxf6+ {[%clk 0:01:39.2]} 17...
Rxf6 {[%clk 0:00:58.1]} 18. Nd8 {[%clk 0:00:48]} 18... Rg6 {[%clk 0:00:53.8]}
19. Qd5+ {[%clk 0:00:43.8]} 19... Be6 {[%clk 0:00:54.1]} 20. Nxe6 {[%clk
0:00:19.2]} 20... Rxg2+ {[%clk 0:00:50.9]} 21. Kxg2 {[%clk 0:00:19.6]} 21...
Qg4+ {[%clk 0:00:51.4]} 22. Kh1 {[%clk 0:00:19.8]} 22... Qf3+ {[%clk 0:00:52.3]}
23. Kg1 {[%clk 0:00:19.6]} 23... Qg4+ {[%clk 0:00:50.8]} 24. Kh1 {[%clk
0:00:19.7]} 24... Qf3+ {[%clk 0:00:51.5]} 25. Kg1 {[%clk 0:00:19.9]} 25... Qg4+
{[%clk 0:00:52.4]} 26. Kh1 {[%clk 0:00:19.5]} 1/2-1/2

[Event "*** SCC Grand Prix: Titled Tuesday Blitz"]
[Site "Chess.com"]
[Date "2020.10.13"]
[Round "8"]
[White "NiranjanNavalgund"]
[Black "NMZanette"]
[Result "1-0"]
[WhiteElo "2444"]
[BlackElo "2255"]
[TimeControl "180+1"]
[EndTime "11:32:27 PDT"]
[Termination "NiranjanNavalgund won by resignation"]

1. d4 {[%clk 0:03:00.9]} 1... f5 {[%clk 0:02:58.8]} 2. Nh3 {[%clk 0:02:56.7]}
2... Nf6 {[%clk 0:02:55.9]} 3. Nf4 {[%clk 0:02:56.9]} 3... e6 {[%clk 0:02:53.7]}
4. h4 {[%clk 0:02:56.5]} 4... Bd6 {[%clk 0:02:46.8]} 5. g3 {[%clk 0:02:55.5]}
5... O-O {[%clk 0:02:45]} 6. Bg2 {[%clk 0:02:55.2]} 6... c6 {[%clk 0:02:43.9]}
7. c4 {[%clk 0:02:54.3]} 7... Bb4+ {[%clk 0:02:28.2]} 8. Bd2 {[%clk 0:02:53.8]}
8... Be7 {[%clk 0:02:23.1]} 9. O-O {[%clk 0:02:52.6]} 9... d5 {[%clk 0:02:23.5]}
10. Nc3 {[%clk 0:02:51.7]} 10... Ne4 {[%clk 0:02:21.8]} 11. Nxe4 {[%clk
0:02:44.8]} 11... fxe4 {[%clk 0:02:20.9]} 12. Rc1 {[%clk 0:02:40.4]} 12... Bf6
{[%clk 0:02:18.1]} 13. e3 {[%clk 0:02:40.3]} 13... Na6 {[%clk 0:02:13.2]} 14.
Bc3 {[%clk 0:02:35.7]} 14... Bd7 {[%clk 0:02:09.4]} 15. Qb3 {[%clk 0:02:29.3]}
15... Qb6 {[%clk 0:02:06.4]} 16. c5 {[%clk 0:02:24.9]} 16... Qxb3 {[%clk
0:02:04.7]} 17. axb3 {[%clk 0:02:24.8]} 17... Nc7 {[%clk 0:02:03.7]} 18. b4
{[%clk 0:02:24.5]} 18... Nb5 {[%clk 0:02:02.2]} 19. Bh3 {[%clk 0:02:24]} 19...
Kf7 {[%clk 0:01:58.7]} 20. Rfd1 {[%clk 0:02:23.8]} 20... Ke7 {[%clk 0:01:57.6]}
21. Kg2 {[%clk 0:02:19.9]} 21... g6 {[%clk 0:01:45.9]} 22. Ra1 {[%clk
0:02:18.9]} 22... a6 {[%clk 0:01:43.1]} 23. Rh1 {[%clk 0:02:18.8]} 23... Rae8
{[%clk 0:01:38.8]} 24. Bg4 {[%clk 0:02:18.6]} 24... Nxc3 {[%clk 0:01:28.1]} 25.
bxc3 {[%clk 0:02:18.3]} 25... e5 {[%clk 0:01:28.5]} 26. Bxd7 {[%clk 0:02:18]}
26... Kxd7 {[%clk 0:01:27.4]} 27. Nh3 {[%clk 0:02:16.5]} 27... exd4 {[%clk
0:01:21.8]} 28. cxd4 {[%clk 0:02:16.2]} 28... Ra8 {[%clk 0:01:14.7]} 29. Nf4
{[%clk 0:02:15.5]} 29... Bd8 {[%clk 0:01:11.7]} 30. b5 {[%clk 0:02:06.2]} 30...
cxb5 {[%clk 0:01:11.3]} 31. Nxd5 {[%clk 0:02:05.8]} 31... Bc7 {[%clk 0:01:06.1]}
32. Nc3 {[%clk 0:02:03.8]} 32... Rae8 {[%clk 0:01:02.8]} 33. d5 {[%clk 0:02:03]}
33... Be5 {[%clk 0:01:01.7]} 34. Rac1 {[%clk 0:01:59.1]} 34... Bxc3 {[%clk
0:01:00.5]} 35. Rxc3 {[%clk 0:01:58.9]} 35... Rf5 {[%clk 0:01:00.1]} 36. Rd1
{[%clk 0:01:56.4]} 36... Rc8 {[%clk 0:00:57.8]} 37. Rd4 {[%clk 0:01:55.8]} 37...
Re5 {[%clk 0:00:57.1]} 38. Rc1 {[%clk 0:01:54]} 38... Kc7 {[%clk 0:00:49.2]} 39.
c6 {[%clk 0:01:51.3]} 39... bxc6 {[%clk 0:00:38.8]} 40. Rxc6+ {[%clk 0:01:52.2]}
40... Kb7 {[%clk 0:00:39.2]} 41. Rf6 {[%clk 0:01:51.5]} 41... Rc7 {[%clk
0:00:34.7]} 42. Rd6 {[%clk 0:01:47.8]} 42... a5 {[%clk 0:00:30.9]} 43. Rd8
{[%clk 0:01:47.8]} 43... b4 {[%clk 0:00:28.5]} 44. d6 {[%clk 0:01:47.9]} 44...
Rf7 {[%clk 0:00:26.9]} 45. d7 {[%clk 0:01:47.1]} 45... Kc7 {[%clk 0:00:24.7]}
46. Rc8+ {[%clk 0:01:46.2]} 1-0

[Event "*** SCC Grand Prix: Titled Tuesday Blitz"]
[Site "Chess.com"]
[Date "2020.10.13"]
[Round "8"]
[White "Chesswizard_2007"]
[Black "seorobert1971"]
[Result "1-0"]
[WhiteElo "2593"]
[BlackElo "2713"]
[TimeControl "180+1"]
[EndTime "11:32:31 PDT"]
[Termination "Chesswizard_2007 won by resignation"]

1. Nh3 {[%clk 0:03:00.9]} 1... c6 {[%clk 0:03:00.9]} 2. g3 {[%clk 0:03:01.8]}
2... d5 {[%clk 0:03:00.8]} 3. Bg2 {[%clk 0:03:02.7]} 3... e5 {[%clk 0:03:01]} 4.
O-O {[%clk 0:03:03.2]} 4... Nf6 {[%clk 0:03:01.2]} 5. f4 {[%clk 0:03:03.8]} 5...
Bd6 {[%clk 0:02:57]} 6. d3 {[%clk 0:02:56.4]} 6... O-O {[%clk 0:02:51.6]} 7. Nc3
{[%clk 0:02:55.4]} 7... Nbd7 {[%clk 0:02:49.2]} 8. e4 {[%clk 0:02:55.4]} 8...
Nb6 {[%clk 0:02:39.7]} 9. f5 {[%clk 0:02:53]} 9... dxe4 {[%clk 0:02:36.2]} 10.
dxe4 {[%clk 0:02:43]} 10... Bc5+ {[%clk 0:02:35.5]} 11. Kh1 {[%clk 0:02:42]}
11... Qxd1 {[%clk 0:02:34]} 12. Rxd1 {[%clk 0:02:42.9]} 12... Bd7 {[%clk
0:02:28.9]} 13. Bg5 {[%clk 0:02:39.7]} 13... Be7 {[%clk 0:02:27]} 14. a4 {[%clk
0:02:34.6]} 14... a5 {[%clk 0:02:06.6]} 15. b3 {[%clk 0:02:34.3]} 15... Rad8
{[%clk 0:02:05.4]} 16. Be3 {[%clk 0:02:30.3]} 16... Nc8 {[%clk 0:02:05.1]} 17.
Nf2 {[%clk 0:02:29.1]} 17... Bb4 {[%clk 0:01:55.5]} 18. Ne2 {[%clk 0:02:27.9]}
18... Bd6 {[%clk 0:01:45.5]} 19. g4 {[%clk 0:02:24.2]} 19... Bc7 {[%clk
0:01:45.2]} 20. Ng3 {[%clk 0:02:21.3]} 20... b6 {[%clk 0:01:39.9]} 21. Bg5
{[%clk 0:02:20.3]} 21... Bd6 {[%clk 0:01:34.3]} 22. Rd3 {[%clk 0:02:13.4]} 22...
Be7 {[%clk 0:01:33.3]} 23. Rad1 {[%clk 0:02:12.9]} 23... Nd6 {[%clk 0:01:00.2]}
24. Rxd6 {[%clk 0:02:03.2]} 24... Bxd6 {[%clk 0:00:59.9]} 25. Rxd6 {[%clk
0:02:04.1]} 25... Bc8 {[%clk 0:01:00.1]} 26. Rxd8 {[%clk 0:02:02.5]} 26... Rxd8
{[%clk 0:01:00]} 27. Bxf6 {[%clk 0:02:03.4]} 27... gxf6 {[%clk 0:00:59.7]} 28.
Nd3 {[%clk 0:02:03.8]} 28... Ba6 {[%clk 0:00:56.1]} 29. Bf1 {[%clk 0:02:02.8]}
29... Kf8 {[%clk 0:00:56]} 30. Kg1 {[%clk 0:02:00.9]} 30... Bb7 {[%clk
0:00:43.3]} 31. Kf2 {[%clk 0:02:00.1]} 31... Ke7 {[%clk 0:00:43.1]} 32. Ke3
{[%clk 0:01:59.7]} 32... c5 {[%clk 0:00:42.8]} 33. Nb2 {[%clk 0:01:56.6]} 33...
Bc6 {[%clk 0:00:42.4]} 34. Bc4 {[%clk 0:01:41]} 34... Rd7 {[%clk 0:00:39.7]} 35.
Nd3 {[%clk 0:01:40.8]} 35... Rd4 {[%clk 0:00:34.8]} 36. Nf2 {[%clk 0:01:29.7]}
36... Rd8 {[%clk 0:00:20.5]} 37. Ne2 {[%clk 0:01:28.2]} 37... h6 {[%clk
0:00:19.8]} 38. Nc3 {[%clk 0:01:27.9]} 38... Rd4 {[%clk 0:00:19.3]} 39. Nd5+
{[%clk 0:01:24.8]} 39... Bxd5 {[%clk 0:00:18.2]} 40. Bxd5 {[%clk 0:01:25.7]} 1-0

[Event "*** SCC Grand Prix: Titled Tuesday Blitz"]
[Site "Chess.com"]
[Date "2020.10.13"]
[Round "8"]
[White "Sanan_Sjugirov"]
[Black "Gabrielian_Artur"]
[Result "1-0"]
[WhiteElo "2900"]
[BlackElo "2789"]
[TimeControl "180+1"]
[EndTime "11:32:32 PDT"]
[Termination "Sanan_Sjugirov won on time"]

1. d4 {[%clk 0:03:00.9]} 1... Nf6 {[%clk 0:02:59.7]} 2. c4 {[%clk 0:03:01.6]}
2... c5 {[%clk 0:02:59.6]} 3. d5 {[%clk 0:03:00.8]} 3... e6 {[%clk 0:02:59.7]}
4. Nc3 {[%clk 0:02:59.8]} 4... exd5 {[%clk 0:02:59.9]} 5. cxd5 {[%clk
0:03:00.7]} 5... d6 {[%clk 0:03:00.4]} 6. Nf3 {[%clk 0:03:00]} 6... g6 {[%clk
0:03:00.6]} 7. Bf4 {[%clk 0:02:54.7]} 7... Bg7 {[%clk 0:03:00.3]} 8. e3 {[%clk
0:02:53.8]} 8... O-O {[%clk 0:02:59.8]} 9. h3 {[%clk 0:02:53.9]} 9... Re8 {[%clk
0:02:59.3]} 10. Bb5 {[%clk 0:02:45.6]} 10... Bd7 {[%clk 0:02:43.3]} 11. Be2
{[%clk 0:02:42.9]} 11... Ne4 {[%clk 0:02:30.6]} 12. Nxe4 {[%clk 0:02:41]} 12...
Rxe4 {[%clk 0:02:30.2]} 13. O-O {[%clk 0:02:41.7]} 13... Qb6 {[%clk 0:02:27.8]}
14. Nd2 {[%clk 0:02:38.8]} 14... Rxf4 {[%clk 0:01:24.7]} 15. exf4 {[%clk
0:02:39.7]} 15... Qxb2 {[%clk 0:01:23.5]} 16. Rb1 {[%clk 0:02:39.8]} 16... Qxa2
{[%clk 0:01:23.6]} 17. Rxb7 {[%clk 0:02:36.6]} 17... Ba4 {[%clk 0:01:20.1]} 18.
Qc1 {[%clk 0:02:32]} 18... Qxd5 {[%clk 0:01:06.2]} 19. Bf3 {[%clk 0:02:32]}
19... Qd4 {[%clk 0:00:59.5]} 20. Nb3 {[%clk 0:02:21.2]} 20... Qf6 {[%clk
0:00:47.5]} 21. Qc4 {[%clk 0:02:14.5]} 21... Bc6 {[%clk 0:00:23.1]} 22. Bd5
{[%clk 0:02:04.8]} 22... Bxd5 {[%clk 0:00:10.1]} 23. Qxd5 {[%clk 0:02:05.7]}
23... Na6 {[%clk 0:00:10.4]} 24. Rd7 {[%clk 0:02:01.1]} 24... Rd8 {[%clk
0:00:07.9]} 25. Rxd8+ {[%clk 0:01:58.5]} 25... Qxd8 {[%clk 0:00:07.8]} 26. Rd1
{[%clk 0:01:59.2]} 26... Nb4 {[%clk 0:00:07.9]} 27. Qxc5 {[%clk 0:01:52.1]}
27... dxc5 {[%clk 0:00:07.5]} 28. Rxd8+ {[%clk 0:01:51.7]} 28... Bf8 {[%clk
0:00:08.1]} 29. Nxc5 {[%clk 0:01:52.3]} 29... Kg7 {[%clk 0:00:08.4]} 30. Nd3
{[%clk 0:01:44.3]} 30... Nc6 {[%clk 0:00:07.1]} 31. Rd7 {[%clk 0:01:42.8]} 31...
a5 {[%clk 0:00:06.6]} 32. Ne5 {[%clk 0:01:41.9]} 32... Nxe5 {[%clk 0:00:02.3]}
33. fxe5 {[%clk 0:01:42.8]} 33... a4 {[%clk 0:00:01.7]} 34. e6 {[%clk
0:01:41.4]} 34... a3 {[%clk 0:00:01.1]} 35. Rxf7+ {[%clk 0:01:41.3]} 35... Kg8
{[%clk 0:00:01.1]} 36. Ra7 {[%clk 0:01:37.9]} 36... Bc5 {[%clk 0:00:02]} 37. Ra5
{[%clk 0:01:37.7]} 37... Bd4 {[%clk 0:00:02.3]} 38. Rxa3 {[%clk 0:01:37.3]}
38... Kg7 {[%clk 0:00:03]} 39. Rf3 {[%clk 0:01:36.9]} 1-0

[Event "*** SCC Grand Prix: Titled Tuesday Blitz"]
[Site "Chess.com"]
[Date "2020.10.13"]
[Round "8"]
[White "olksuna"]
[Black "LedakovAlexandr"]
[Result "1-0"]
[WhiteElo "2613"]
[BlackElo "2462"]
[TimeControl "180+1"]
[EndTime "11:32:36 PDT"]
[Termination "olksuna won by resignation"]

1. e4 {[%clk 0:03:00.9]} 1... Nc6 {[%clk 0:03:00.9]} 2. Nf3 {[%clk 0:02:59.2]}
2... d6 {[%clk 0:02:31.4]} 3. d4 {[%clk 0:02:55.3]} 3... g6 {[%clk 0:02:32.3]}
4. Be2 {[%clk 0:02:52.3]} 4... Bg7 {[%clk 0:02:32.5]} 5. O-O {[%clk 0:02:52.5]}
5... Nf6 {[%clk 0:02:32.9]} 6. Nc3 {[%clk 0:02:51.9]} 6... Kf8 {[%clk
0:02:32.3]} 7. Re1 {[%clk 0:02:44]} 7... Bg4 {[%clk 0:02:29.3]} 8. Be3 {[%clk
0:02:39.1]} 8... Bxf3 {[%clk 0:02:28.6]} 9. Bxf3 {[%clk 0:02:38.3]} 9... e5
{[%clk 0:02:29.1]} 10. dxe5 {[%clk 0:02:33.3]} 10... dxe5 {[%clk 0:02:29]} 11.
Nd5 {[%clk 0:02:32.4]} 11... Nd4 {[%clk 0:02:27.8]} 12. c3 {[%clk 0:02:21.8]}
12... Nxf3+ {[%clk 0:02:05.2]} 13. Qxf3 {[%clk 0:02:22.7]} 13... Nxd5 {[%clk
0:02:03.5]} 14. exd5 {[%clk 0:01:50.3]} 14... f5 {[%clk 0:01:50.3]} 15. Rad1
{[%clk 0:01:49.4]} 15... Kf7 {[%clk 0:01:49.1]} 16. d6 {[%clk 0:01:43.9]} 16...
c6 {[%clk 0:01:48.8]} 17. d7 {[%clk 0:01:30.6]} 17... Qc7 {[%clk 0:01:40]} 18.
Qe2 {[%clk 0:01:20]} 18... b5 {[%clk 0:01:29.4]} 19. Qc2 {[%clk 0:01:13.5]}
19... Rhd8 {[%clk 0:01:26]} 20. Qb3+ {[%clk 0:01:09.6]} 20... Kf6 {[%clk
0:01:21.5]} 21. f4 {[%clk 0:01:03.2]} 21... Bf8 {[%clk 0:00:15]} 22. fxe5+
{[%clk 0:00:58.9]} 22... Kg7 {[%clk 0:00:14.2]} 23. Qe6 {[%clk 0:00:56.1]} 23...
Rab8 {[%clk 0:00:06.2]} 24. Bg5 {[%clk 0:00:54.6]} 24... Rb7 {[%clk 0:00:05.3]}
25. Qf6+ {[%clk 0:00:52.9]} 25... Kg8 {[%clk 0:00:04.3]} 26. Qxd8 {[%clk
0:00:53]} 1-0